bitfinex/quotes_ETHUSD_20250210
["timestamp","ask_amount","ask_price","bid_price","bid_amount"]
[1739183282354,3.75693,2661.8,2661.5,2.17571939]
[1739183282559,3.0,2661.7,2661.5,2.17571939]
[1739183283292,6.757,2661.7,2661.5,2.17571939]
[1739183283461,3.75713,2661.6,2661.5,2.17571939]
[1739183283898,6.75713,2661.6,2661.5,2.17571939]
[1739183285095,3.0,2661.6,2661.5,2.17571939]
[1739183287083,3.0,2661.6,2661.5,2.98111939]
[1739183287591,3.75687,2661.8,2661.5,2.98111939]
[1739183288295,7.5138,2661.8,2661.5,2.98111939]
[1739183288480,3.75687,2661.8,2661.5,2.98111939]
[1739183291135,3.75687,2661.8,2661.6,0.08486481]
[1739183291422,3.0,2661.9,2661.6,0.08486481]
[1739183291583,3.0,2661.9,2661.8,2.17571939]
[1739183291984,6.75671,2661.9,2661.8,2.26016171]
[1739183292795,6.75671,2661.9,2661.8,0.08444232]
[1739183293008,3.75713,2661.6,2661.5,11.03571939]
[1739183294521,3.75689,2661.8,2661.5,11.03571939]
[1739183294522,6.75704,2661.7,2661.5,11.03571939]
[1739183294881,3.75713,2661.6,2661.5,11.03571939]
[1739183295085,3.75713,2661.6,2661.5,2.17571939]
[1739183297918,3.75701,2661.7,2661.5,2.17571939]
[1739183298138,6.75701,2661.7,2661.6,0.7515]
[1739183298451,6.75701,2661.7,2661.5,2.17571939]
[1739183298939,3.75713,2661.6,2661.5,2.17571939]
[1739183302227,6.75701,2661.7,2661.5,2.17571939]
[1739183302429,3.75713,2661.6,2661.5,2.17571939]
[1739183305827,3.75663,2662.0,2661.5,2.17571939]
[1739183306026,0.2496,2661.6,2661.5,3.84169034]
[1739183307704,0.2496,2661.6,2661.5,0.08445034]
[1739183308016,0.2496,2661.6,2661.5,2.26016973]
[1739183311912,4.00673,2661.6,2661.5,2.26016973]
[1739183312310,0.2496,2661.6,2661.5,2.26016973]
[1739183313820,4.00673,2661.6,2661.5,2.26016973]
[1739183314820,7.00673,2661.6,2661.5,0.08445034]
[1739183315442,6.75756,2661.3,2661.2,2.17571939]
[1739183316240,6.75756,2661.3,2660.8,8.86]
[1739183316241,3.75804,2661.0,2660.9,2.17571939]
[1739183320041,3.75784,2661.1,2660.9,2.17571939]
[1739183320262,3.75798,2661.0,2660.9,2.17571939]
[1739183321064,3.75798,2661.0,2660.9,2.26089226]
[1739183321350,6.75798,2661.0,2660.9,2.26089226]
[1739183323027,7.57068,2661.0,2660.9,2.26089226]
[1739183326128,7.57068,2661.0,2660.9,0.08517287]
[1739183326653,3.8127,2661.0,2660.6,2.17571939]
[1739183326862,6.7584,2660.7,2660.6,2.17571939]
[1739183328150,7.5711,2660.7,2660.6,2.17571939]
[1739183329353,6.7584,2660.7,2660.6,2.17571939]
[1739183331645,7.5711,2660.7,2660.6,2.17571939]
[1739183335068,3.8127,2660.7,2660.6,2.17571939]
[1739183335269,3.0,2660.7,2660.4,5.93453939]
[1739183335460,3.0,2660.7,2660.4,2.17571939]
[1739183336269,6.75841,2660.7,2660.5,0.08574897]
[1739183336858,3.0,2660.7,2660.5,0.08574897]
[1739183337378,6.75841,2660.7,2660.5,0.08574897]
[1739183338365,3.0,2660.7,2660.5,0.08574897]
[1739183340244,3.75794,2661.1,2660.6,4.53991]
[1739183340480,3.0,2661.0,2660.9,2.17571939]
[1739183340883,3.0,2661.0,2660.9,2.26120183]
[1739183341080,3.75764,2661.3,2660.9,2.26120183]
[1739183341285,3.75742,2661.4,2661.2,2.17571939]
[1739183341577,4.00678,2661.6,2661.2,2.17571939]
[1739183341783,7.00678,2661.6,2661.5,2.17571939]
[1739183342189,7.82858,2661.6,2661.5,0.08535197]
[1739183342461,4.0714,2661.6,2661.2,2.17571939]
[1739183342621,6.75756,2661.3,2661.2,2.17571939]
[1739183343112,0.2496,2661.6,2661.2,2.95711939]
[1739183343270,4.00673,2661.6,2661.5,2.17571939]
[1739183343974,0.2496,2661.6,2661.5,2.17571939]
[1739183347108,0.2496,2661.6,2661.5,2.95711939]
[1739183348736,0.2496,2661.6,2661.5,8.20711939]
[1739183349040,0.2496,2661.6,2661.5,11.96438939]
[1739183350133,0.2496,2661.6,2661.5,8.20711939]
[1739183350334,0.2496,2661.6,2661.5,7.42571939]
[1739183351182,0.2496,2661.6,2661.5,7.51057348]
[1739183353753,4.78803,2661.6,2661.5,7.51057348]
[1739183354603,4.78803,2661.6,2661.5,2.26057348]
[1739183357539,4.00673,2661.6,2661.5,2.26057348]
[1739183359896,0.2496,2661.6,2661.5,3.08057348]
[1739183360434,0.2496,2661.6,2661.5,8.33057348]
[1739183362561,4.00673,2661.6,2661.5,7.51057348]
[1739183364941,7.00673,2661.6,2661.5,7.51057348]
[1739183365136,7.00673,2661.6,2661.5,5.33485409]
[1739183366458,7.00673,2661.6,2661.5,0.08485409]
[1739183366953,3.0,2661.5,2661.2,2.17571939]
[1739183367150,3.75756,2661.3,2661.2,2.17571939]
[1739183367509,3.75742,2661.4,2661.2,2.17571939]
[1739183367712,6.7573,2661.5,2661.2,2.17571939]
[1739183368111,3.75756,2661.3,2661.2,2.17571939]
[1739183368450,10.51472,2661.5,2661.2,2.17571939]
[1739183368653,3.75749,2661.4,2661.2,2.17571939]
[1739183370569,3.75756,2661.3,2661.2,2.17571939]
[1739183370714,4.53886,2661.3,2661.2,2.17571939]
[1739183371056,7.53886,2661.3,2661.2,2.17571939]
[1739183371857,6.75756,2661.3,2661.2,2.17571939]
[1739183372497,3.75784,2661.1,2661.0,5.25]
[1739183374569,6.75784,2661.1,2661.0,5.25]
[1739183375571,6.75804,2661.0,2660.8,2.17571939]
[1739183376360,3.75784,2661.1,2660.8,2.17571939]
[1739183376669,3.75812,2660.9,2660.8,2.17571939]
[1739183379639,3.75812,2660.9,2660.8,1.0826892]
[1739183381042,3.75812,2660.9,2660.8,1.16162178]
[1739183382041,4.53572,2660.9,2660.8,1.16162178]
[1739183382842,7.53572,2660.9,2660.8,1.16162178]
[1739183383633,7.53572,2660.9,2660.8,0.07893258]
[1739183386865,3.75865,2660.6,2660.4,2.16585139]
[1739183387067,7.51733,2660.6,2660.4,2.16585139]
[1739183387971,3.75869,2660.5,2660.4,2.16585139]
[1739183389488,7.51732,2660.6,2660.4,2.16585139]
[1739183389946,3.75865,2660.6,2660.4,2.16585139]
[1739183390299,7.5173,2660.6,2660.4,2.16585139]
[1739183390583,3.75869,2660.5,2660.4,2.16585139]
[1739183396299,3.75869,2660.5,2660.4,2.24545981]
[1739183397690,6.75869,2660.5,2660.4,2.24545981]
[1739183397861,7.51469,2660.5,2660.4,0.07960842]
[1739183398062,3.75936,2660.1,2659.8,2.93645139]
[1739183398274,7.51836,2660.2,2659.9,0.07695094]
[1739183398597,7.51836,2660.2,2660.1,2.16585139]
[1739183399012,7.51836,2660.2,2660.1,2.24279697]
[1739183399517,3.75897,2660.3,2660.1,2.24279697]
[1739183399678,3.75892,2660.4,2660.1,2.24279697]
[1739183399879,3.75911,2660.2,2660.1,2.24279697]
[1739183403177,3.0,2660.3,2660.1,2.24279697]
[1739183403383,3.75851,2660.7,2660.2,0.7629]
[1739183403596,3.75851,2660.7,2660.6,2.16585139]
[1739183403772,6.75851,2660.7,2660.6,1.08290164]
[1739183404102,6.75851,2660.7,2660.6,1.84580164]
[1739183404103,3.0,2660.7,2660.6,1.84580164]
[1739183405606,3.0,2660.7,2660.6,2.92856618]
[1739183408678,3.75869,2660.5,2660.4,5.25]
[1739183408879,3.75869,2660.5,2660.1,0.07694558]
[1739183408880,3.75911,2660.2,2660.1,0.07694558]
[1739183409106,7.57971,2660.2,2660.1,0.07694558]
[1739183413623,8.31484024,2660.2,2660.1,0.07694558]
[1739183416967,6.75911,2660.2,2660.1,0.07694558]
[1739183422100,7.57971,2660.2,2660.1,0.07694558]
[1739183423018,3.75968,2659.8,2659.7,2.16566618]
[1739183424798,6.75968,2659.8,2659.7,2.16566618]
[1739183425169,0.7777,2661.1,2659.8,0.7883]
[1739183425302,3.75826,2660.8,2660.7,2.16566618]
[1739183425696,3.75869,2660.5,2660.4,2.16566618]
[1739183425911,3.75911,2660.2,2660.1,2.16566618]
[1739183426519,6.75911,2660.2,2660.1,2.16566618]
[1739183427201,6.75953,2659.9,2659.8,2.16566618]
[1739183431012,6.75953,2659.9,2659.8,2.23799404]
[1739183434273,7.53723,2659.9,2659.8,2.23799404]
[1739183437026,7.53723,2659.9,2659.8,0.07232786]
[1739183437381,3.0,2659.8,2659.5,2.16566618]
[1739183437545,3.75996,2659.6,2659.5,2.16566618]
[1739183437944,6.75996,2659.6,2659.5,2.23704113]
[1739183450154,7.56506,2659.6,2659.5,2.23704113]
[1739183451847,7.56506,2659.6,2659.5,0.07137495]
[1739183452193,0.8104,2659.4,2658.9,2.16566618]
[1739183452350,6.76081,2659.0,2658.9,2.16566618]
[1739183452992,6.76081,2659.0,2658.9,2.23754747]
[1739183453891,3.0,2659.0,2658.9,2.23754747]
[1739183454054,3.76053,2659.2,2658.9,2.23754747]
[1739183454249,3.76031,2659.4,2659.0,0.8218]
[1739183454450,3.76031,2659.4,2659.2,2.16566618]
[1739183454853,3.76031,2659.4,2659.3,0.07234762]
[1739183455277,3.0,2659.5,2659.3,0.8218]
[1739183455478,6.76012,2659.5,2659.3,0.89414762]
[1739183455685,6.76012,2659.5,2659.3,6.14414762]
[1739183456400,3.0,2659.5,2659.3,6.14414762]
[1739183456562,3.76024,2659.4,2659.3,6.14414762]
[1739183456767,6.76014,2659.5,2659.3,6.14414762]
[1739183456963,3.75996,2659.6,2659.3,6.14414762]
[1739183457263,3.75996,2659.6,2659.5,2.16566618]
[1739183457768,6.75996,2659.6,2659.5,2.23780012]
[1739183458655,3.0,2659.6,2659.5,2.23780012]
[1739183459102,6.75996,2659.6,2659.5,2.23780012]
[1739183460498,3.0,2659.6,2659.5,2.23780012]
[1739183462200,6.75996,2659.6,2659.5,2.23780012]
[1739183464098,3.0,2659.6,2659.5,2.23780012]
[1739183464801,6.75996,2659.6,2659.5,2.23780012]
[1739183465208,0.8104,2660.3,2659.6,0.8218]
[1739183465408,0.55777258,2660.6,2659.6,0.8218]
[1739183465409,0.55777258,2660.6,2660.4,3.75874]
[1739183465565,0.55777258,2660.6,2660.5,6.81801476]
[1739183466264,0.55777258,2660.6,2660.5,2.23752476]
[1739183466822,4.31632258,2660.6,2660.5,2.23752476]
[1739183467225,4.31632258,2660.6,2660.5,2.16566618]
[1739183467382,4.31632258,2660.6,2660.5,2.23705472]
[1739183467820,7.31632258,2660.6,2660.5,2.23705472]
[1739183467995,8.06942258,2660.6,2660.5,0.07138854]
[1739183468184,7.51165,2660.6,2660.5,0.07138854]
[1739183469291,6.75897,2660.3,2660.2,2.16566618]
[1739183469724,6.75897,2660.3,2660.2,2.23715003]
[1739183469931,7.51207,2660.3,2660.2,0.07148385]
[1739183470296,3.75939,2660.0,2659.9,2.16566618]
[1739183470527,3.75939,2660.0,2659.9,7.41566618]
[1739183476240,3.0,2659.9,2659.5,2.16566618]
[1739183476408,3.75996,2659.6,2659.5,2.16566618]
[1739183476994,6.75996,2659.6,2659.5,2.16566618]
[1739183477197,6.75996,2659.6,2659.2,2.16566618]
[1739183477198,6.76038,2659.3,2659.2,2.16566618]
[1739183477398,3.76081,2659.0,2658.9,2.16566618]
[1739183477696,3.76073,2659.1,2658.9,2.23446677]
[1739183477900,7.52148,2659.1,2658.9,2.23446677]
[1739183478126,3.76073,2659.1,2658.9,2.23446677]
[1739183478297,3.0,2659.2,2658.9,2.23446677]
[1739183478497,3.7602,2659.5,2659.1,2.16566618]
[1739183478696,3.7602,2659.5,2659.4,2.16566618]
[1739183479127,3.7602,2659.5,2659.4,2.23445337]
[1739183479633,6.7602,2659.5,2659.4,2.23445337]
[1739183479803,3.0,2659.5,2659.4,2.23445337]
[1739183481295,6.7601,2659.5,2659.4,2.23445337]
[1739183482217,6.7601,2659.5,2659.4,7.48445337]
[1739183483348,3.0,2659.5,2659.4,7.48445337]
[1739183483644,3.75917,2660.2,2659.4,7.48445337]
[1739183483645,3.75967,2659.9,2659.4,8.25415337]
[1739183483852,3.75967,2659.9,2659.8,2.16566618]
[1739183484007,6.75967,2659.9,2659.8,2.23507393]
[1739183485428,7.57567,2659.9,2659.8,2.23507393]
[1739183485611,7.57567,2659.9,2659.8,2.16566618]
[1739183485814,7.57567,2659.9,2659.8,2.23483887]
[1739183491954,7.57567,2659.9,2659.8,0.06917269]
[1739183492248,3.0,2659.8,2659.5,7.41566618]
[1739183492453,3.75996,2659.6,2659.5,7.41566618]
[1739183493681,4.57596,2659.6,2659.5,7.41566618]
[1739183494165,4.57596,2659.6,2659.5,2.16566618]
[1739183497984,4.57596,2659.6,2659.5,2.23521632]
[1739183502552,4.57596,2659.6,2659.5,0.06955014]
[1739183502994,3.0,2659.2,2658.9,7.41566618]
[1739183503200,3.76081,2659.0,2658.9,7.41566618]
[1739183504087,3.76063,2659.2,2659.0,0.8268]
[1739183506291,6.76049,2659.3,2659.0,0.8268]
[1739183506588,3.76067,2659.1,2659.0,0.8268]
[1739183507293,6.76049,2659.3,2659.0,0.8268]
[1739183507486,3.76061,2659.2,2659.0,0.8268]
[1739183507689,6.76061,2659.2,2659.1,2.16566618]
[1739183508121,7.58041,2659.2,2659.1,2.16566618]
[1739183508822,7.58041,2659.2,2658.8,2.16566618]
[1739183508823,3.76095,2658.9,2658.8,2.16566618]
[1739183509722,6.76095,2658.9,2658.8,2.16566618]
[1739183509911,3.0,2658.6,2658.5,2.16566618]
[1739183510622,6.76137,2658.6,2658.5,2.16566618]
[1739183511709,3.76151,2658.5,2658.4,5.25]
[1739183512014,4.58131,2658.5,2658.4,5.25]
[1739183512934,4.58131,2658.5,2658.4,5.31982818]
[1739183514928,4.58131,2658.5,2658.4,0.06982818]
[1739183515300,0.8198,2658.5,2658.2,2.16566618]
[1739183515519,6.7618,2658.3,2658.2,2.16566618]
[1739183516606,6.7618,2658.3,2658.0,2.99246618]
[1739183517006,3.7618,2658.3,2658.0,2.99246618]
[1739183519007,7.52322,2658.5,2658.0,2.99246618]
[1739183519239,6.76157,2658.5,2658.4,2.97426618]
[1739183519925,3.7613,2658.7,2658.4,2.97426618]
[1739183520513,3.7613,2658.7,2658.4,2.16566618]
[1739183520909,3.76151,2658.5,2658.4,7.41566618]
[1739183521345,3.7613,2658.7,2658.4,7.41566618]
[1739183521644,3.76069,2659.1,2658.6,4.56987]
[1739183521949,3.7606,2659.2,2658.9,0.8086]
[1739183522149,3.7606,2659.2,2659.1,2.16566618]
[1739183522305,6.7606,2659.2,2659.1,2.16566618]
[1739183522642,3.76045,2659.3,2659.1,2.16566618]
[1739183522975,7.52037,2659.5,2659.2,0.8086]
[1739183523183,3.76018,2659.5,2659.4,2.16566618]
[1739183523342,6.76018,2659.5,2659.4,2.16566618]
[1739183523739,3.76039,2659.3,2658.9,0.8086]
[1739183524043,6.76095,2658.9,2658.8,16.27566618]
[1739183525444,6.76095,2658.9,2658.8,16.34604136]
[1739183526872,6.76095,2658.9,2658.8,2.23604136]
[1739183528273,3.76095,2658.9,2658.8,3.05114136]
[1739183528468,3.76082,2659.0,2658.8,3.05114136]
[1739183528668,3.76095,2658.9,2658.8,3.05114136]
[1739183528898,3.76082,2659.0,2658.8,3.05114136]
[1739183529299,3.76095,2658.9,2658.8,3.05114136]
[1739183529499,3.76082,2659.0,2658.8,3.05114136]
[1739183529695,6.76057,2659.2,2658.8,3.05114136]
[1739183529905,7.52063,2659.4,2659.1,2.98076618]
[1739183530196,3.7603,2659.4,2659.2,0.07046527]
[1739183530519,7.52067,2659.4,2659.2,0.07046527]
[1739183531025,3.7603,2659.4,2659.2,0.07046527]
[1739183531316,7.52063,2659.4,2659.2,0.07046527]
[1739183531516,3.75959,2659.9,2659.3,0.8151]
[1739183531719,3.75959,2659.9,2659.8,2.16566618]
[1739183531920,6.75959,2659.9,2659.8,2.23597424]
[1739183532125,3.75864,2660.6,2660.1,3.75917]
[1739183532422,1.0172,2661.6,2660.3,8.09024236]
[1739183532423,3.75797,2661.1,2660.3,8.09024236]
[1739183532723,3.75797,2661.1,2661.0,2.16566618]
[1739183532724,3.75794,2661.1,2661.0,2.16566618]
[1739183532906,3.75794,2661.1,2661.0,2.23514278]
[1739183533109,7.52554,2661.1,2661.0,2.23514278]
[1739183533313,4.52554,2661.1,2661.0,2.23514278]
[1739183535226,3.75794,2661.1,2661.0,2.23514278]
[1739183537330,0.77171677,2661.5,2661.1,0.8151]
[1739183537516,0.2496,2661.6,2661.4,2.16566618]
[1739183537826,0.2496,2661.6,2661.5,0.06774421]
[1739183538621,0.2496,2661.6,2661.5,0.88284421]
[1739183539133,4.00673,2661.6,2661.5,0.06774421]
[1739183540546,7.77433,2661.6,2661.5,0.06774421]
[1739183540848,8.32433,2661.6,2661.5,0.06774421]
[1739183541253,8.32433,2661.6,2661.1,2.16566618]
[1739183541254,6.7577,2661.2,2661.1,2.16566618]
[1739183541624,6.7577,2661.2,2661.1,2.23342109]
[1739183542160,7.5253,2661.2,2661.1,0.06775491]
[1739183542570,7.5253,2661.2,2660.8,2.16566618]
[1739183542571,6.75812,2660.9,2660.8,2.16566618]
[1739183543073,6.75812,2660.9,2660.8,2.23307366]
[1739183544973,6.75812,2660.9,2660.8,0.06740748]
[1739183545481,6.75855,2660.6,2660.5,2.16566618]
[1739183547253,3.75855,2660.6,2660.5,2.16566618]
[1739183547532,3.75841,2660.7,2660.5,2.16566618]
[1739183548169,6.75815,2660.9,2660.5,2.16566618]
[1739183548358,6.75815,2660.9,2660.8,2.16566618]
[1739183552640,8.06285,2660.9,2660.8,2.16566618]
[1739183554793,7.51285,2660.9,2660.8,2.16566618]
[1739183557866,7.51285,2660.9,2660.8,2.23078658]
[1739183558909,8.06285,2660.9,2660.8,0.0651204]
[1739183559101,8.06285,2660.9,2660.5,5.25]
[1739183559301,6.75855,2660.6,2660.5,5.25]
[1739183562736,6.75883,2660.4,2660.3,2.16566618]
[1739183564396,6.75883,2660.4,2660.3,2.92316618]
[1739183566027,6.75883,2660.4,2660.3,2.16566618]
[1739183566225,7.52683,2660.4,2660.3,2.16566618]
[1739183566915,3.75925,2660.1,2660.0,2.16566618]
[1739183567111,3.75968,2659.8,2659.7,2.16566618]
[1739183567449,6.75968,2659.8,2659.7,2.16566618]
[1739183570694,7.53120429,2659.8,2659.7,2.16566618]
[1739183571184,6.75968,2659.8,2659.7,2.16566618]
[1739183573181,6.75968,2659.8,2659.7,2.2317627]
[1739183575477,3.0,2659.8,2659.7,2.9995627]
[1739183575676,6.75968,2659.8,2659.7,2.9995627]
[1739183575903,6.75968,2659.8,2659.7,2.2317627]
[1739183580294,7.55788,2659.8,2659.7,2.2317627]
[1739183581435,6.75968,2659.8,2659.7,2.2317627]
[1739183583083,6.75968,2659.8,2659.7,0.06609652]
[1739183583359,6.75968,2659.8,2659.4,2.16566618]
[1739183583548,6.7601,2659.5,2659.4,2.16566618]
[1739183585879,6.76052,2659.2,2659.1,2.16566618]
[1739183588101,6.76052,2659.2,2659.1,2.23260457]
[1739183591885,7.52532,2659.2,2659.1,2.23260457]
[1739183592088,8.07532,2659.2,2659.1,0.06693839]
[1739183592505,3.76137,2658.6,2658.5,7.41566618]
[1739183592788,6.76137,2658.6,2658.5,7.41566618]
[1739183594568,6.76137,2658.6,2658.5,2.16566618]
[1739183595779,3.76137,2658.6,2658.2,2.16566618]
[1739183596017,6.7618,2658.3,2658.2,2.16566618]
[1739183599303,7.5266,2658.3,2658.2,2.16566618]
[1739183600196,8.0766,2658.3,2658.2,2.16566618]
[1739183603002,6.7618,2658.3,2658.2,2.16566618]
[1739183604252,7.3118,2658.3,2658.2,2.16566618]
[1739183604464,7.3118,2658.3,2658.2,2.22921551]
[1739183605353,8.0729,2658.3,2658.2,0.06354933]
[1739183605653,3.76222,2658.0,2657.9,2.16566618]
[1739183606276,3.76222,2658.0,2657.9,2.22993613]
[1739183607081,6.76222,2658.0,2657.9,2.22993613]
[1739183608503,3.76186,2658.3,2658.0,0.7648]
[1739183608649,3.76169,2658.4,2658.2,2.16566618]
[1739183609001,3.76169,2658.4,2658.3,2.2299254]
[1739183609158,6.76154,2658.5,2658.3,2.2299254]
[1739183609354,3.76166,2658.4,2658.3,2.2299254]
[1739183611396,6.76166,2658.4,2658.3,2.2299254]
[1739183612325,0.2496,2658.5,2658.4,0.7648]
[1739183612469,3.76089,2659.0,2658.4,0.7648]
[1739183612669,3.76089,2659.0,2658.9,2.93046618]
[1739183613070,3.76089,2659.0,2658.9,2.99470932]
[1739183614190,3.76089,2659.0,2658.9,2.22990932]
[1739183616318,3.0,2659.1,2658.9,2.22990932]
[1739183616523,3.0,2659.2,2659.0,0.7648]
[1739183616681,3.0,2659.2,2659.1,2.16566618]
[1739183616879,6.76052,2659.2,2659.1,2.22916449]
[1739183617616,3.0,2659.2,2659.1,2.22916449]
[1739183617817,3.76047,2659.3,2659.1,2.22916449]
[1739183618475,3.0,2659.4,2659.1,2.22916449]
[1739183618676,3.0,2659.6,2659.3,2.16566618]
[1739183619022,6.76002,2659.6,2659.4,0.06349028]
[1739183619185,3.7599,2659.7,2659.5,0.7512]
[1739183619518,3.7599,2659.7,2659.6,2.2291511]
[1739183619719,6.7599,2659.7,2659.6,2.2291511]
[1739183620027,3.7599,2659.7,2659.6,2.2291511]
[1739183620212,3.75969,2659.8,2659.6,2.2291511]
[1739183620518,3.75982,2659.7,2659.6,2.2291511]
[1739183620821,6.75982,2659.7,2659.6,2.2291511]
[1739183623125,7.55242,2659.7,2659.6,2.2291511]
[1739183625128,8.10242,2659.7,2659.6,0.06348492]
[1739183625482,8.10242,2659.7,2659.3,2.16566618]
[1739183625483,3.76024,2659.4,2659.3,2.16566618]
[1739183625918,3.76024,2659.4,2659.3,2.2280771]
[1739183626727,8.10284,2659.4,2659.3,0.06241092]
[1739183627023,3.76067,2659.1,2659.0,2.16566618]
[1739183627198,6.76067,2659.1,2659.0,2.16566618]
[1739183631615,3.76067,2659.1,2659.0,2.16566618]
[1739183632842,3.76034,2659.4,2659.0,11.84216618]
[1739183633000,3.76034,2659.4,2659.3,2.16566618]
[1739183633199,3.76034,2659.4,2659.3,3.04478538]
[1739183634351,3.76034,2659.4,2659.3,2.22828538]
[1739183634939,7.31034,2659.4,2659.3,0.0626192]
[1739183635151,8.13184,2659.4,2659.3,9.2e-06]
[1739183635332,8.13184,2659.4,2659.3,8.13e-06]
[1739183635648,3.76067,2659.1,2659.0,8.86]
[1739183635858,7.58217,2659.1,2659.0,8.86]
[1739183636859,6.76109,2658.8,2658.7,2.16566618]
[1739183637431,3.76151,2658.5,2658.4,2.16566618]
[1739183637766,6.76151,2658.5,2658.4,2.16566618]
[1739183639113,3.76151,2658.5,2658.4,2.98216618]
[1739183640168,6.76151,2658.5,2658.4,2.16566618]
[1739183640572,3.76151,2658.5,2658.4,2.16566618]
[1739183642364,6.76151,2658.5,2658.4,2.16566618]
[1739183642567,6.76169,2658.4,2658.3,2.16566618]
[1739183642768,6.76169,2658.4,2658.3,2.22439129]
[1739183643064,6.76169,2658.4,2658.3,0.05872511]
[1739183643441,6.76208,2658.1,2658.0,2.16566618]
[1739183644989,7.58358,2658.1,2658.0,2.16566618]
[1739183646167,6.76208,2658.1,2658.0,2.16566618]
[1739183647281,7.49788207,2658.1,2658.0,2.16566618]
[1739183647487,6.76208,2658.1,2658.0,2.16566618]
[1739183648189,6.76208,2658.1,2658.0,2.22548831]
[1739183651813,7.57288,2658.1,2658.0,2.22548831]
[1739183651993,7.57288,2658.1,2658.0,0.05982213]
[1739183652189,3.76251,2657.8,2657.7,2.16566618]
[1739183652389,3.76251,2657.8,2657.7,2.22579225]
[1739183654631,6.76251,2657.8,2657.7,2.22579225]
[1739183656426,6.76251,2657.8,2657.7,0.06012607]
[1739183656627,3.0,2657.7,2657.4,2.16566618]
[1739183656830,3.76293,2657.5,2657.4,2.16566618]
[1739183657994,6.76293,2657.5,2657.4,2.16566618]
[1739183659089,3.76293,2657.5,2657.4,2.92246618]
[1739183659790,6.76293,2657.5,2657.4,2.16566618]
[1739183663099,6.76293,2657.5,2657.4,2.22617702]
[1739183665902,7.55003,2657.5,2657.4,2.22617702]
[1739183669515,7.55003,2657.5,2657.4,0.06051084]
[1739183670044,3.76335,2657.2,2657.1,2.17066618]
[1739183673447,6.76335,2657.2,2657.1,0.005]
[1739183673827,7.57825,2657.2,2657.1,0.005]
[1739183678851,3.7642,2656.6,2656.5,2.16566618]
[1739183679036,6.7642,2656.6,2656.5,2.16566618]
[1739183679224,6.7642,2656.6,2656.5,2.22705569]
[1739183679628,3.76491,2656.1,2656.0,5.25]
[1739183679923,3.76491,2656.1,2655.9,2.99296618]
[1739183679924,6.76506,2656.0,2655.9,2.16566618]
[1739183680338,3.76548,2655.7,2655.6,2.16566618]
[1739183683341,3.76535,2655.8,2655.6,2.16566618]
[1739183683875,7.53027,2656.0,2655.6,2.16566618]
[1739183684037,3.0,2656.1,2655.9,2.16566618]
[1739183684038,6.76492,2656.1,2655.9,2.16566618]
[1739183684233,6.76492,2656.1,2656.0,0.8273]
[1739183684234,3.76492,2656.1,2656.0,0.8273]
[1739183686186,0.8231,2656.9,2656.0,6.0773]
[1739183686477,0.8231,2656.9,2656.8,2.16566618]
[1739183686478,3.76378,2656.9,2656.8,2.16566618]
[1739183686973,6.76378,2656.9,2656.8,2.16566618]
[1739183687146,3.76378,2656.9,2656.8,2.16566618]
[1739183687465,3.76378,2656.9,2656.8,2.223584]
[1739183688866,6.76378,2656.9,2656.8,2.223584]
[1739183691877,7.58688,2656.9,2656.8,2.223584]
[1739183692038,7.58688,2656.9,2656.8,0.05791782]
[1739183692366,3.7642,2656.6,2656.5,2.16566618]
[1739183692581,6.7642,2656.6,2656.5,2.16566618]
[1739183692940,6.7642,2656.6,2656.5,2.21962666]
[1739183695896,3.0,2656.6,2656.5,2.21962666]
[1739183696171,0.55,2657.5,2656.5,2.97212666]
[1739183696172,7.52825,2656.7,2656.5,2.97212666]
[1739183696337,7.52825,2656.7,2656.6,2.16566618]
[1739183696541,7.52825,2656.7,2656.6,2.21962398]
[1739183697074,3.7641,2656.7,2656.6,2.21962398]
[1739183697574,3.76387,2656.9,2656.6,2.21962398]
[1739183697871,7.52713,2657.1,2656.7,0.7525]
[1739183698046,0.74260597,2657.3,2656.8,4.33133236]
[1739183698047,3.76335,2657.2,2656.8,4.33133236]
[1739183698249,3.76335,2657.2,2657.1,2.91816618]
[1739183698568,3.76335,2657.2,2657.1,2.97018851]
[1739183699592,3.76335,2657.2,2657.1,2.21768851]
[1739183701896,6.76335,2657.2,2657.1,2.21768851]
[1739183703627,3.76335,2657.2,2657.1,2.21768851]
[1739183704093,4.52395,2657.2,2657.1,2.21768851]
[1739183706301,3.76335,2657.2,2657.1,2.21768851]
[1739183708162,6.76335,2657.2,2657.1,2.21768851]
[1739183711002,7.57095,2657.2,2657.1,0.05202233]
[1739183711164,3.76364,2657.0,2656.9,5.25]
[1739183713994,6.76378,2656.9,2656.8,2.16566618]
[1739183715404,6.76406,2656.7,2656.6,5.25]
[1739183715706,3.7642,2656.6,2656.5,2.16566618]
[1739183721315,3.76534,2655.8,2655.7,2.16566618]
[1739183722323,3.7652,2655.9,2655.7,2.92786618]
[1739183723009,7.53053,2655.9,2655.8,0.04669632]
[1739183723214,3.7652,2655.9,2655.8,0.04669632]
[1739183723419,7.53051,2655.9,2655.7,2.92786618]
[1739183723626,3.7652,2655.9,2655.8,0.04679712]
[1739183724110,3.7652,2655.9,2655.7,2.92786618]
[1739183724310,3.7652,2655.9,2655.8,0.04679712]
[1739183724614,3.76506,2656.0,2655.7,2.92786618]
[1739183724801,3.76534,2655.8,2655.7,2.92786618]
[1739183726218,3.76534,2655.8,2655.7,0.7622]
[1739183726913,3.76548,2655.7,2655.6,11.02566618]
[1739183728423,7.53618,2655.7,2654.8,0.1454678]
[1739183728584,3.76662,2654.9,2654.8,0.1454678]
[1739183730328,3.76662,2654.9,2654.8,2.31113398]
[1739183730789,3.76619,2655.2,2654.9,0.7622]
[1739183730988,6.76619,2655.2,2655.1,2.16566618]
[1739183732000,3.76619,2655.2,2655.1,2.16566618]
[1739183735406,3.76605,2655.3,2655.1,2.16566618]
[1739183735789,3.76619,2655.2,2655.1,2.16566618]
[1739183737524,3.76619,2655.2,2655.1,2.98826618]
[1739183737930,3.76619,2655.2,2655.1,3.18288079]
[1739183738609,3.76619,2655.2,2655.1,2.36028079]
[1739183738794,7.59679,2655.2,2655.1,0.19461461]
[1739183739205,3.76662,2654.9,2654.8,2.31113398]
[1739183741506,4.59722,2654.9,2654.8,2.31113398]